[Event "17th Delhi GM Open 2019"]
[Site "Delhi"]
[Date "2019.01.12"]
[Round "6"]
[White "Lugovskoy, Maxim"]
[Black "Arpita, Mukherjee"]
[Result "1-0"]
[ECO "B51"]
[WhiteElo "2445"]
[BlackElo "2132"]
[Annotator "NA"]
[PlyCount "89"]
[EventDate "2019.01.09"]
[EventType "swiss"]
[EventCountry "IND"]
[SourceTitle "playchess.com"]
[Source "ChessBase"]
[SourceQuality "1"]
[TimeControl "5400+30"]

1. e4 {[%emt 0:01:00]} c5 {[%emt 0:00:00]} 2. Nf3 {[%emt 0:00:13]} d6 {[%emt 0:00:00]} 3. Bb5+ {[%emt 0:00:04]} Nd7 {[%emt 0:00:12]} 4. d4 {[%emt 0:00:03]} cxd4 {[%emt 0:00:12]} 5. Qxd4 {[%emt 0:00:04]} a6 {[%emt 0:00:23]} 6. Bxd7+ {[%emt 0:00:06]} Bxd7 {[%emt 0:00:02]} 7. c4 {[%emt 0:00:03]} e5 {[%emt 0:02:57]} 8. Qd3 {[%emt 0:00:04]} h6 {[%emt 0:00:09]} 9. Nc3 {[%emt 0:00:17]} Nf6 {[%emt 0:00:07]} 10. O-O {[%emt 0:00:27]} Be7 {[%emt 0:00:21]} 11. b3 {[%emt 0:00:40]} Qc7 {[%emt 0:02:38]} 12. a4 {[%emt 0:00:37]} O-O {[%emt 0:01:53]} 13. Rd1 {[%emt 0:03:43]} Rfd8 {[%emt 0:02:14]} 14. Nd2 {[%emt 0:00:25]} Rac8 {[%emt 0:07:26]} 15. Nf1 {[%emt 0:00:59]} Be6 {[%emt 0:07:34]} 16. Ne3 {[%emt 0:00:34]} Bf8 {[%emt 0:04:14]} 17. Bd2 {[%emt 0:01:23]} b6 {[%emt 0:04:15]} 18. Be1 {[%emt 0:00:59]} Qb7 {[%emt 0:01:55]} 19. f3 {[%emt 0:00:54]} Nd7 {[%emt 0:00:36]} 20. Rab1 {[%emt 0:02:43]} Nc5 {[%emt 0:04:49]} 21. Qe2 {[%emt 0:02:05]} Qc6 {[%emt 0:03:18]} 22. Ned5 {[%emt 0:02:29]} Bxd5 {[%emt 0:03:09]} 23. Nxd5 {[%emt 0:01:20]} Rb8 {[%emt 0:01:24]} 24. Bf2 {[%emt 0:01:03]} Ne6 {[%emt 0:01:22]} 25. Be3 {[%emt 0:01:14]} Nc5 {[%emt 0:14:27]} 26. Qf2 {[%emt 0:05:41]} Kh7 {[%emt 0:03:26]} 27. Qg3 {[%emt 0:01:20]} Nd7 {[%emt 0:09:40]} 28. Qg4 {[%emt 0:03:14]} Qc8 {[%emt 0:03:59]} 29. Qh5 {[%emt 0:01:57]} Kg8 {[%emt 0:02:34]} 30. g4 {[%emt 0:05:36]} Re8 {[%emt 0:02:15]} 31. g5 {[%emt 0:02:10]} hxg5 {[%emt 0:03:57]} 32. Bxg5 {[%emt 0:00:12]} Re6 {[%emt 0:00:08]} 33. Kh1 {[%emt 0:00:34]} b5 {[%emt 0:01:44]} 34. cxb5 {[%emt 0:01:52]} Qc2 {[%emt 0:07:37]} 35. Nb4 {[%emt 0:01:29]} Qf2 {[%emt 0:01:08]} 36. Rd2 {[%emt 0:01:01]} Qb6 37. Nd5 {[%emt 0:00:55]} Qa5 {[%emt 0:01:45]} 38. Rc2 {[%emt 0:00:47]} Rg6 {[%emt 0:01:56]} 39. b6 {[%emt 0:01:50]} Rxb6 {[%emt 0:02:07]} 40. Bd2 {[%emt 0:00:59]} Rxb3 {[%emt 0:00:29]} 41. Rxb3 {[%emt 0:00:10]} Qxa4 {[%emt 0:00:05]} 42. Rc8 {[%emt 0:01:03]} Qa1+ {[%emt 0:00:24]} 43. Bc1 {[%emt 0:00:37]} Rh6 {[%emt 0:00:27]} 44. Ne7+ {[%emt 0:00:18]} Kh7 {[%emt 0:00:10]} 45. Qf5+ {[%emt 0:00:06]} 1-0

[Event "17th Delhi GM Open 2019"]
[Site "Delhi"]
[Date "2019.01.12"]
[Round "6"]
[White "Dzhumaev, Marat"]
[Black "Jay Kundaliya"]
[Result "1-0"]
[ECO "B12"]
[WhiteElo "2437"]
[BlackElo "2054"]
[Annotator "NA"]
[PlyCount "77"]
[EventDate "2019.01.09"]
[EventType "swiss"]
[EventCountry "IND"]
[SourceTitle "playchess.com"]
[Source "ChessBase"]
[SourceQuality "1"]
[TimeControl "5400+30"]

1. e4 {[%emt 0:00:59]} c6 {[%emt 0:00:00]} 2. d4 {[%emt 0:04:29]} d5 {[%emt 0:00:13]} 3. e5 {[%emt 0:00:17]} Bf5 {[%emt 0:00:06]} 4. Nf3 {[%emt 0:00:17]} e6 {[%emt 0:00:16]} 5. Be2 {[%emt 0:00:06]} Bg6 {[%emt 0:04:46]} 6. O-O {[%emt 0:00:27]} Nh6 {[%emt 0:00:26]} 7. Nbd2 {[%emt 0:04:25]} Be7 {[%emt 0:01:15]} 8. c3 {[%emt 0:00:38]} O-O {[%emt 0:00:17]} 9. Nb3 {[%emt 0:00:22]} Nd7 {[%emt 0:01:11]} 10. Bxh6 {[%emt 0:06:11]} gxh6 {[%emt 0:00:06]} 11. Nfd2 {[%emt 0:02:59]} c5 {[%emt 0:26:50]} 12. f4 {[%emt 0:13:49]} c4 {[%emt 0:00:53]} 13. Nc1 {[%emt 0:00:11]} Qb6 {[%emt 0:00:40]} 14. b3 {[%emt 0:01:50]} Ba3 {[%emt 0:20:57]} 15. bxc4 {[%emt 0:00:13]} Bb2 {[%emt 0:00:07]} 16. Ncb3 {[%emt 0:00:28]} Bxc3 {[%emt 0:13:16]} 17. cxd5 {[%emt 0:00:17]} Bxa1 {[%emt 0:06:18]} 18. Qxa1 {[%emt 0:00:24]} Rac8 {[%emt 0:01:16]} 19. d6 {[%emt 0:04:39]} a6 {[%emt 0:05:03]} 20. h3 {[%emt 0:02:42]} Qb4 {[%emt 0:03:29]} 21. Bf3 {[%emt 0:10:42]} Qb6 {[%emt 0:00:00]} 22. Be2 {[%emt 0:00:00]} Qb4 {[%emt 0:01:00]} 23. Bf3 {[%emt 0:01:00]} Rc2 {[%emt 0:03:05]} 24. Ne4 {[%emt 0:03:51]} Qa3 {[%emt 0:00:57]} 25. Nbc5 {[%emt 0:04:32]} Nxc5 {[%emt 0:01:12]} 26. Nxc5 {[%emt 0:00:09]} Rxa2 {[%emt 0:01:16]} 27. Qc1 {[%emt 0:03:37]} Qb4 {[%emt 0:01:00]} 28. Qe3 {[%emt 0:06:26]} Rd2 {[%emt 0:00:19]} 29. d5 {[%emt 0:00:24]} exd5 {[%emt 0:02:09]} 30. e6 {[%emt 0:00:21]} fxe6 {[%emt 0:01:18]} 31. Nxe6 {[%emt 0:00:10]} Rf7 {[%emt 0:02:02]} 32. f5 {[%emt 0:06:53]} Bxf5 {[%emt 0:02:18]} 33. Bh5 {[%emt 0:00:07]} Bg6 {[%emt 0:01:27]} 34. Rxf7 {[%emt 0:00:26]} Kxf7 {[%emt 0:00:26]} 35. d7 {[%emt 0:01:41]} Bxh5 {[%emt 0:01:00]} 36. d8=Q {[%emt 0:01:16]} Re2 {[%emt 0:00:22]} 37. Qd7+ {[%emt 0:00:49]} Kg6 {[%emt 0:00:01]} 38. Qg7+ {[%emt 0:00:59]} Kf5 {[%emt 0:00:02]} 39. g4+ {[%emt 0:00:26]} 1-0

[Event "17th Delhi GM Open 2019"]
[Site "Delhi"]
[Date "2019.01.12"]
[Round "6"]
[White "Czebe, Attila"]
[Black "Aditya Mittal"]
[Result "1/2-1/2"]
[ECO "A06"]
[WhiteElo "2418"]
[BlackElo "2251"]
[Annotator "NA"]
[PlyCount "66"]
[EventDate "2019.01.09"]
[EventType "swiss"]
[EventCountry "IND"]
[SourceTitle "playchess.com"]
[Source "ChessBase"]
[SourceQuality "1"]
[TimeControl "5400+30"]

1. Nf3 {[%emt 0:00:00]} d5 {[%emt 0:00:00]} 2. g3 {[%emt 0:00:31]} Nf6 {[%emt 0:00:00]} 3. Bg2 {[%emt 0:00:13]} g6 {[%emt 0:00:00]} 4. b3 {[%emt 0:01:07]} Bg7 {[%emt 0:00:01]} 5. Bb2 {[%emt 0:00:03]} O-O {[%emt 0:00:26]} 6. O-O {[%emt 0:00:20]} Nbd7 {[%emt 0:04:59]} 7. c4 {[%emt 0:02:58]} c6 {[%emt 0:00:11]} 8. Nc3 {[%emt 0:05:43]} e5 {[%emt 0:02:23]} 9. cxd5 {[%emt 0:00:47]} Nxd5 {[%emt 0:01:13]} 10. d4 {[%emt 0:23:23]} Nxc3 {[%emt 0:00:00]} 11. Bxc3 {[%emt 0:00:04]} e4 {[%emt 0:08:23]} 12. Ne5 {[%emt 0:04:34]} f5 {[%emt 0:01:19]} 13. Qc2 {[%emt 0:00:01]} Nxe5 {[%emt 0:05:13]} 14. dxe5 {[%emt 0:00:12]} Qe7 15. f4 {[%emt 0:09:55]} exf3 {[%emt 0:01:47]} 16. exf3 {[%emt 0:00:08]} Qc5+ {[%emt 0:04:36]} 17. Rf2 {[%emt 0:00:27]} Bxe5 {[%emt 0:00:31]} 18. Bxe5 {[%emt 0:00:04]} Qxe5 {[%emt 0:00:08]} 19. Rd1 {[%emt 0:00:17]} Re8 {[%emt 0:18:18]} 20. f4 {[%emt 0:00:19]} Qg7 {[%emt 0:03:02]} 21. Qc5 {[%emt 0:03:05]} Be6 {[%emt 0:02:20]} 22. Re2 {[%emt 0:00:16]} Qf8 {[%emt 0:04:43]} 23. Qa5 {[%emt 0:03:40]} Bf7 {[%emt 0:06:35]} 24. Red2 {[%emt 0:00:28]} Re7 {[%emt 0:01:47]} 25. h4 {[%emt 0:00:28]} b6 {[%emt 0:04:37]} 26. Qc3 {[%emt 0:00:28]} Rc8 {[%emt 0:01:17]} 27. Rd6 {[%emt 0:00:49]} c5 {[%emt 0:01:32]} 28. Bc6 {[%emt 0:02:49]} Re6 {[%emt 0:03:03]} 29. Rxe6 {[%emt 0:00:35]} Bxe6 {[%emt 0:00:02]} 30. Bd7 {[%emt 0:00:09]} Bxd7 {[%emt 0:03:25]} 31. Rxd7 {[%emt 0:00:01]} Re8 {[%emt 0:01:37]} 32. Qc4+ {[%emt 0:01:13]} Kh8 {[%emt 0:00:07]} 33. Qc3+ {[%emt 0:14:43]} Kg8 1/2-1/2

[Event "17th Delhi GM Open 2019"]
[Site "Delhi"]
[Date "2019.01.12"]
[Round "6"]
[White "Thipsay, Praveen M"]
[Black "Erigaisi Arjun"]
[Result "0-1"]
[ECO "C02"]
[WhiteElo "2405"]
[BlackElo "2548"]
[Annotator "ChessBase"]
[PlyCount "104"]
[EventDate "2019.01.09"]
[EventType "swiss"]
[EventCountry "IND"]
[SourceTitle "playchess.com"]
[Source "ChessBase"]
[SourceQuality "1"]
[TimeControl "5400+30"]

1. e4 {[%emt 0:00:00]} e6 {[%emt 0:07:28]} 2. d4 {[%emt 0:00:29]} d5 {[%emt 0:00:49]} 3. e5 {[%emt 0:00:10]} c5 {[%emt 0:00:04]} 4. c3 {[%emt 0:00:10]} Nc6 {[%emt 0:00:06]} 5. Nf3 {[%emt 0:00:08]} Qb6 {[%emt 0:00:05]} 6. Be2 {[%emt 0:16:45]} Nh6 {[%emt 0:00:17]} 7. Bxh6 {[%emt 0:01:43]} gxh6 {[%emt 0:01:00]} 8. Qd2 {[%emt 0:00:08]} Bg7 {[%emt 0:00:10]} 9. O-O {[%emt 0:01:43]} O-O {[%emt 0:00:09]} 10. Na3 {[%emt 0:00:13]} Bd7 {[%emt 0:00:48]} 11. Nc2 {[%emt 0:01:39]} cxd4 {[%emt 0:06:07]} 12. cxd4 {[%emt 0:04:10]} f6 {[%emt 0:00:07]} 13. exf6 {[%emt 0:05:17]} Rxf6 {[%emt 0:00:08]} 14. b4 {[%emt 0:01:18]} Raf8 {[%emt 0:05:53]} 15. b5 {[%emt 0:01:48]} Ne7 {[%emt 0:00:08]} 16. Ne5 {[%emt 0:01:55]} Be8 {[%emt 0:00:22]} 17. g3 {[%emt 0:16:16]} Nf5 {[%emt 0:10:42]} 18. a4 {[%emt 0:02:48]} h5 {[%emt 0:02:31]} 19. Kg2 {[%emt 0:07:37]} Kh8 {[%emt 0:07:05]} 20. Qc3 {[%emt 0:06:08]} Rg8 {[%emt 0:08:21]} 21. Bd3 {[%emt 0:06:09]} h4 {[%emt 0:02:56]} 22. Rae1 {[%emt 0:09:14]} Rff8 {[%emt 0:01:58]} 23. Kh1 {[%emt 0:01:07]} Qd8 {[%emt 0:16:22]} 24. g4 {[%emt 0:06:47]} Bxe5 {[%emt 0:02:15]} 25. Rxe5 {[%emt 0:03:02]} Rxg4 {[%emt 0:00:16]} 26. Bxf5 {[%emt 0:02:22]} Rxf5 {[%emt 0:00:28]} 27. Rxf5 {[%emt 0:00:11]} exf5 {[%emt 0:00:05]} 28. f3 {[%emt 0:00:22]} Rg7 {[%emt 0:02:09]} 29. Qe3 {[%emt 0:01:40]} Bh5 {[%emt 0:00:21]} 30. Qe5 {[%emt 0:01:52]} h6 {[%emt 0:02:53]} 31. Ne1 {[%emt 0:01:38]} Qg5 {[%emt 0:00:49]} 32. Qe2 {[%emt 0:00:02]} Re7 {[%emt 0:04:28]} 33. Qf2 {[%emt 0:00:04]} Re3 {[%emt 0:00:13]} 34. Rg1 {[%emt 0:01:19]} Qf4 {[%emt 0:00:32]} 35. Qg2 {[%emt 0:00:14]} Bxf3 {[%emt 0:00:18]} 36. Nxf3 {[%emt 0:00:03]} Qxf3 {[%emt 0:00:05]} 37. Qxf3 {[%emt 0:00:03]} Rxf3 {[%emt 0:00:06]} 38. Rg6 {[%emt 0:00:03]} Rf4 {[%emt 0:00:20]} 39. Rxh6+ {[%emt 0:00:16]} Kg7 {[%emt 0:00:04]} 40. Rd6 {[%emt 0:00:04]} Rxd4 {[%emt 0:00:05]} 41. a5 {[%emt 0:00:08]} Ra4 {[%emt 0:01:10]} 42. Rxd5 {[%emt 0:00:51]} Rxa5 {[%emt 0:00:08]} 43. Rd7+ {[%emt 0:00:19]} Kf6 {[%emt 0:00:55]} 44. Rxb7 {[%emt 0:00:03]} h3 {[%emt 0:02:31]} 45. Kg1 {[%emt 0:00:03]} Ra2 {[%emt 0:00:23]} 46. Rh7 {[%emt 0:02:30]} Rg2+ {[%emt 0:00:07]} 47. Kf1 {[%emt 0:00:03]} Rxh2 {[%emt 0:00:06]} 48. Rxa7 {[%emt 0:00:07]} Rb2 {[%emt 0:00:07]} 49. Rh7 {[%emt 0:00:27]} h2 {[%emt 0:00:11]} 50. b6 {[%emt 0:00:52]} Kg5 {[%emt 0:00:13]} 51. Rh8 {[%emt 0:00:13]} Kg4 {[%emt 0:00:12]} 52. b7 {[%emt 0:00:04]} Kg3 {[%emt 0:00:37]} 0-1

[Event "17th Delhi GM Open 2019"]
[Site "Delhi"]
[Date "2019.01.12"]
[Round "6"]
[White "Aronyak Ghosh"]
[Black "Harsha Bharathakoti"]
[Result "1/2-1/2"]
[ECO "A41"]
[WhiteElo "2353"]
[BlackElo "2481"]
[Annotator "ChessBase"]
[PlyCount "82"]
[EventDate "2019.01.09"]
[EventType "swiss"]
[EventCountry "IND"]
[SourceTitle "playchess.com"]
[Source "ChessBase"]
[SourceQuality "1"]
[TimeControl "5400+30"]

1. d4 {[%emt 0:00:00]} d6 {[%emt 0:02:16]} 2. Nf3 {[%emt 0:01:06]} g6 {[%emt 0:01:21]} 3. g3 {[%emt 0:00:48]} Bg7 {[%emt 0:00:50]} 4. Bg2 {[%emt 0:00:03]} Nd7 {[%emt 0:03:22]} 5. O-O {[%emt 0:00:54]} e5 {[%emt 0:00:41]} 6. dxe5 {[%emt 0:00:45]} dxe5 {[%emt 0:00:36]} 7. e4 {[%emt 0:00:34]} Ngf6 {[%emt 0:04:02]} 8. Nbd2 {[%emt 0:00:26]} O-O {[%emt 0:00:22]} 9. b3 {[%emt 0:00:33]} b6 {[%emt 0:03:25]} 10. Re1 {[%emt 0:00:45]} Qe7 {[%emt 0:10:56]} 11. a4 {[%emt 0:03:59]} Rd8 {[%emt 0:03:06]} 12. Ba3 {[%emt 0:01:07]} Qe8 {[%emt 0:02:07]} 13. Qe2 {[%emt 0:02:13]} a5 {[%emt 0:02:10]} 14. Rad1 {[%emt 0:02:43]} Bb7 {[%emt 0:08:49]} 15. Qc4 {[%emt 0:03:36]} Rac8 {[%emt 0:20:18]} 16. Bh3 {[%emt 0:00:46]} Bf8 {[%emt 0:01:25]} 17. Bxf8 {[%emt 0:01:26]} Kxf8 {[%emt 0:02:28]} 18. Nb1 {[%emt 0:07:37]} Qe7 {[%emt 0:00:32]} 19. Nc3 {[%emt 0:00:06]} Qb4 {[%emt 0:05:20]} 20. Qxb4+ {[%emt 0:05:52]} axb4 {[%emt 0:00:05]} 21. Nd5 {[%emt 0:02:14]} Nxd5 {[%emt 0:01:31]} 22. Bxd7 {[%emt 0:02:44]} Rxd7 {[%emt 0:01:12]} 23. Nxe5 {[%emt 0:00:09]} Rd6 {[%emt 0:03:51]} 24. exd5 {[%emt 0:00:11]} Bxd5 {[%emt 0:01:07]} 25. Re3 {[%emt 0:09:03]} Re8 {[%emt 0:06:25]} 26. Ng4 {[%emt 0:03:00]} Red8 {[%emt 0:01:47]} 27. Red3 {[%emt 0:02:57]} Ke7 {[%emt 0:11:23]} 28. Ne3 {[%emt 0:00:58]} Bf3 {[%emt 0:00:40]} 29. Rxd6 {[%emt 0:01:03]} Rxd6 {[%emt 0:00:04]} 30. Rxd6 {[%emt 0:00:49]} Kxd6 {[%emt 0:00:04]} 31. Kf1 {[%emt 0:00:03]} Kc5 {[%emt 0:00:30]} 32. Ke1 {[%emt 0:00:20]} Kd4 {[%emt 0:00:07]} 33. Kd2 {[%emt 0:00:02]} f5 {[%emt 0:01:10]} 34. Nc4 {[%emt 0:00:40]} g5 {[%emt 0:01:38]} 35. Nb2 {[%emt 0:07:18]} h5 {[%emt 0:00:56]} 36. Nd3 {[%emt 0:02:51]} c5 {[%emt 0:00:05]} 37. Nb2 {[%emt 0:00:03]} Bd5 {[%emt 0:00:29]} 38. Nd3 {[%emt 0:00:17]} Be4 {[%emt 0:00:14]} 39. Nb2 {[%emt 0:00:08]} Bd5 {[%emt 0:00:04]} 40. Nd3 {[%emt 0:00:03]} Be4 {[%emt 0:02:00]} 41. Nb2 {[%emt 0:00:02]} Bc6 {[%emt 0:00:29]} 1/2-1/2

[Event "17th Delhi GM Open 2019"]
[Site "Delhi"]
[Date "2019.01.12"]
[Round "6"]
[White "Siva Mahadevan"]
[Black "Rahman, Ziaur"]
[Result "0-1"]
[ECO "B06"]
[WhiteElo "2333"]
[BlackElo "2470"]
[Annotator "ChessBase"]
[PlyCount "118"]
[EventDate "2019.01.09"]
[EventType "swiss"]
[EventCountry "IND"]
[SourceTitle "playchess.com"]
[Source "ChessBase"]
[SourceQuality "1"]
[TimeControl "5400+30"]

1. e4 {[%emt 0:02:14]} g6 {[%emt 0:00:57]} 2. d4 {[%emt 0:00:24]} Bg7 {[%emt 0:00:06]} 3. Nc3 {[%emt 0:00:10]} d6 {[%emt 0:00:58]} 4. Bg5 {[%emt 0:00:28]} h6 {[%emt 0:01:58]} 5. Bh4 {[%emt 0:00:12]} Nc6 {[%emt 0:02:03]} 6. Nge2 {[%emt 0:04:21]} Nf6 {[%emt 0:02:47]} 7. Qd2 {[%emt 0:00:29]} O-O {[%emt 0:04:30]} 8. d5 {[%emt 0:07:04]} Ne5 {[%emt 0:02:38]} 9. Nd4 {[%emt 0:07:52]} c5 {[%emt 0:04:39]} 10. Nb3 {[%emt 0:05:15]} a6 {[%emt 0:13:10]} 11. a4 {[%emt 0:00:41]} g5 {[%emt 0:03:35]} 12. Bg3 {[%emt 0:00:32]} Nh5 {[%emt 0:00:57]} 13. Be2 {[%emt 0:00:31]} Nxg3 {[%emt 0:00:04]} 14. hxg3 {[%emt 0:00:44]} f5 {[%emt 0:01:10]} 15. f4 {[%emt 0:00:59]} Nf7 {[%emt 0:01:59]} 16. exf5 {[%emt 0:10:24]} Bxf5 {[%emt 0:00:42]} 17. O-O {[%emt 0:00:07]} Qd7 {[%emt 0:05:18]} 18. Bd3 {[%emt 0:01:15]} e5 {[%emt 0:07:29]} 19. dxe6 {[%emt 0:20:57]} Bxe6 {[%emt 0:01:54]} 20. Rae1 {[%emt 0:00:45]} Rae8 {[%emt 0:06:59]} 21. Bg6 {[%emt 0:02:23]} Bxb3 {[%emt 0:07:18]} 22. cxb3 {[%emt 0:00:21]} Rxe1 {[%emt 0:02:41]} 23. Rxe1 {[%emt 0:05:27]} gxf4 {[%emt 0:01:28]} 24. gxf4 {[%emt 0:01:14]} Bd4+ {[%emt 0:01:35]} 25. Kh2 {[%emt 0:01:44]} Qg4 {[%emt 0:01:59]} 26. Bxf7+ {[%emt 0:00:41]} Rxf7 {[%emt 0:05:05]} 27. g3 {[%emt 0:00:05]} Rg7 {[%emt 0:02:27]} 28. Qd3 {[%emt 0:03:09]} Kf8 {[%emt 0:03:12]} 29. Kg2 {[%emt 0:14:06]} h5 {[%emt 0:01:14]} 30. Qf3 {[%emt 0:02:23]} h4 {[%emt 0:01:15]} 31. Qxg4 {[%emt 0:00:07]} Rxg4 {[%emt 0:00:04]} 32. Ne2 {[%emt 0:05:11]} Bxb2 {[%emt 0:01:58]} 33. Kf3 {[%emt 0:00:19]} Rg7 {[%emt 0:00:10]} 34. gxh4 {[%emt 0:00:12]} d5 {[%emt 0:00:29]} 35. Rd1 {[%emt 0:02:58]} Rd7 {[%emt 0:00:25]} 36. f5 {[%emt 0:00:18]} Be5 {[%emt 0:02:13]} 37. Nf4 {[%emt 0:01:37]} Bxf4 {[%emt 0:01:59]} 38. Kxf4 {[%emt 0:00:02]} a5 {[%emt 0:01:37]} 39. Ke5 {[%emt 0:00:54]} d4 {[%emt 0:00:04]} 40. f6 {[%emt 0:00:29]} b6 {[%emt 0:02:39]} 41. h5 {[%emt 0:00:51]} Rh7 {[%emt 0:01:11]} 42. Ke6 {[%emt 0:00:33]} Rxh5 {[%emt 0:00:35]} 43. Rd3 {[%emt 0:00:11]} Rh1 {[%emt 0:00:32]} 44. Rf3 {[%emt 0:00:50]} Re1+ {[%emt 0:00:12]} 45. Kf5 {[%emt 0:00:17]} Re3 {[%emt 0:00:16]} 46. Rf1 {[%emt 0:00:08]} Kf7 {[%emt 0:01:45]} 47. Rh1 {[%emt 0:00:22]} Rf3+ {[%emt 0:00:06]} 48. Ke5 {[%emt 0:00:33]} Rxf6 {[%emt 0:00:50]} 49. Rh7+ {[%emt 0:00:03]} Kg6 {[%emt 0:00:09]} 50. Rb7 {[%emt 0:00:05]} Kg5 {[%emt 0:00:22]} 51. Rb8 {[%emt 0:01:14]} Rf5+ {[%emt 0:00:21]} 52. Ke4 {[%emt 0:00:10]} Rf4+ {[%emt 0:00:35]} 53. Ke5 {[%emt 0:00:05]} Kg4 {[%emt 0:01:03]} 54. Rxb6 {[%emt 0:00:30]} d3 {[%emt 0:00:07]} 55. Rg6+ {[%emt 0:00:54]} Kf3 {[%emt 0:00:06]} 56. Rd6 {[%emt 0:00:54]} Re4+ {[%emt 0:00:25]} 57. Kd5 {[%emt 0:00:33]} Rd4+ {[%emt 0:00:05]} 58. Kxc5 {[%emt 0:00:02]} Rxd6 {[%emt 0:00:04]} 59. Kxd6 {[%emt 0:00:02]} d2 {[%emt 0:00:06]} 0-1

[Event "17th Delhi GM Open 2019"]
[Site "Delhi"]
[Date "2019.01.12"]
[Round "6"]
[White "Neelash Saha"]
[Black "Deviatkin, Andrei"]
[Result "1/2-1/2"]
[ECO "D12"]
[WhiteElo "2300"]
[BlackElo "2461"]
[Annotator "ChessBase"]
[PlyCount "131"]
[EventDate "2019.01.09"]
[EventType "swiss"]
[EventCountry "IND"]
[SourceTitle "playchess.com"]
[Source "ChessBase"]
[SourceQuality "1"]
[TimeControl "5400+30"]

1. d4 {[%emt 0:00:00]} c6 {[%emt 0:06:00]} 2. c4 {[%emt 0:00:48]} d5 {[%emt 0:00:05]} 3. Nf3 {[%emt 0:00:04]} Nf6 {[%emt 0:00:41]} 4. e3 {[%emt 0:00:06]} Bf5 {[%emt 0:00:41]} 5. Nc3 {[%emt 0:00:06]} e6 {[%emt 0:00:08]} 6. Nh4 {[%emt 0:01:18]} Bg6 {[%emt 0:01:26]} 7. Nxg6 {[%emt 0:01:45]} hxg6 {[%emt 0:00:05]} 8. Qb3 {[%emt 0:00:06]} Qc7 {[%emt 0:13:48]} 9. h3 {[%emt 0:02:57]} Nbd7 {[%emt 0:00:45]} 10. Bd2 {[%emt 0:00:08]} Nb6 {[%emt 0:10:19]} 11. Rc1 {[%emt 0:01:25]} Be7 {[%emt 0:01:11]} 12. cxd5 {[%emt 0:01:46]} exd5 {[%emt 0:05:03]} 13. Bd3 {[%emt 0:00:06]} O-O {[%emt 0:00:34]} 14. O-O {[%emt 0:01:00]} a5 {[%emt 0:10:11]} 15. a3 {[%emt 0:02:05]} a4 {[%emt 0:00:51]} 16. Qd1 {[%emt 0:00:50]} Rfe8 {[%emt 0:01:08]} 17. Rb1 {[%emt 0:00:17]} Qd6 {[%emt 0:02:16]} 18. Bc2 {[%emt 0:00:42]} Bd8 {[%emt 0:02:38]} 19. Nxa4 {[%emt 0:16:23]} Bc7 {[%emt 0:01:18]} 20. f4 {[%emt 0:01:17]} Nc4 {[%emt 0:08:00]} 21. Re1 {[%emt 0:00:57]} b6 {[%emt 0:03:33]} 22. Bb4 {[%emt 0:04:28]} Qd7 {[%emt 0:05:40]} 23. Qf3 {[%emt 0:01:48]} Ne4 {[%emt 0:00:39]} 24. Re2 {[%emt 0:04:36]} Re6 {[%emt 0:04:42]} 25. b3 {[%emt 0:06:02]} Ncd6 {[%emt 0:00:49]} 26. Bxd6 {[%emt 0:00:42]} Qxd6 {[%emt 0:02:10]} 27. Bxe4 {[%emt 0:01:31]} dxe4 {[%emt 0:02:37]} 28. Qg3 {[%emt 0:00:48]} Qxa3 {[%emt 0:00:26]} 29. Rc2 {[%emt 0:00:06]} Qe7 {[%emt 0:07:23]} 30. Rbc1 {[%emt 0:00:41]} Qd7 {[%emt 0:00:14]} 31. Qg4 {[%emt 0:10:03]} f5 {[%emt 0:01:49]} 32. Qg3 {[%emt 0:01:09]} Bd8 {[%emt 0:01:46]} 33. h4 {[%emt 0:00:47]} Rd6 {[%emt 0:00:16]} 34. Qe1 {[%emt 0:00:12]} Kh7 {[%emt 0:01:01]} 35. g3 {[%emt 0:00:14]} Ra5 {[%emt 0:00:49]} 36. Kg2 {[%emt 0:07:49]} Qe6 {[%emt 0:00:19]} 37. Rc3 {[%emt 0:03:53]} Rb5 {[%emt 0:00:26]} 38. Rb1 {[%emt 0:00:15]} Bf6 {[%emt 0:01:48]} 39. Qe2 {[%emt 0:01:24]} Bd8 {[%emt 0:01:57]} 40. b4 {[%emt 0:01:56]} Qd7 {[%emt 0:01:30]} 41. Rcc1 {[%emt 0:00:50]} c5 {[%emt 0:01:56]} 42. bxc5 {[%emt 0:00:08]} Rxb1 {[%emt 0:00:03]} 43. Rxb1 {[%emt 0:00:05]} bxc5 {[%emt 0:00:02]} 44. Nxc5 {[%emt 0:00:08]} Qc8 {[%emt 0:01:06]} 45. Rc1 {[%emt 0:15:51]} Rc6 {[%emt 0:01:08]} 46. Qb2 {[%emt 0:02:53]} Be7 {[%emt 0:00:13]} 47. Nb3 {[%emt 0:00:43]} Rxc1 {[%emt 0:00:31]} 48. Qxc1 {[%emt 0:00:20]} Qa6 {[%emt 0:00:19]} 49. Qc2 {[%emt 0:00:21]} Qa4 {[%emt 0:00:43]} 50. Kf2 {[%emt 0:02:46]} Bd8 {[%emt 0:00:26]} 51. Qc3 {[%emt 0:05:23]} Qa2+ {[%emt 0:00:12]} 52. Kg1 {[%emt 0:00:35]} Qe2 {[%emt 0:00:46]} 53. Qd2 {[%emt 0:00:38]} Qg4 {[%emt 0:00:47]} 54. Kh2 {[%emt 0:00:11]} Bxh4 {[%emt 0:00:25]} 55. Qg2 {[%emt 0:02:30]} Qd1 {[%emt 0:01:09]} 56. Nd2 {[%emt 0:00:43]} Be7 {[%emt 0:00:18]} 57. g4 {[%emt 0:00:42]} Kg8 {[%emt 0:00:48]} 58. g5 {[%emt 0:00:53]} Qh5+ {[%emt 0:00:15]} 59. Kg1 {[%emt 0:00:05]} Qd1+ {[%emt 0:00:10]} 60. Nf1 {[%emt 0:00:03]} Bb4 {[%emt 0:00:31]} 61. Qa2+ {[%emt 0:01:20]} Kh7 {[%emt 0:00:08]} 62. Qf2 {[%emt 0:00:44]} Be1 {[%emt 0:01:03]} 63. Qh2+ {[%emt 0:00:03]} Kg8 {[%emt 0:00:04]} 64. Qa2+ {[%emt 0:00:12]} Kh7 {[%emt 0:00:08]} 65. Qg2 {[%emt 0:00:05]} Kg8 {[%emt 0:00:23]} 66. Qa2+ {[%emt 0:01:01]} 1/2-1/2